[Event "FIDE CB Open 2022"]
[Site "Ceske Budejovice"]
[Date "2022.07.04"]
[Round "4.37"]
[White "Hosnedl, Matyas"]
[Black "Zezula, Jakub"]
[Result "0-1"]
[ECO "C90"]
[WhiteElo "1967"]
[BlackElo "1831"]
[Annotator "NA RC"]
[PlyCount "74"]
[EventDate "2022.07.01"]
[EventType "swiss"]
[EventCountry "CZE"]
[SourceTitle "playchess.com"]
[Source "ChessBase"]
[SourceQuality "1"]
[TimeControl "40/5400+30:1800+30"]

1. e4 {[%emt 0:00:04]} e5 {[%emt 0:00:08]} 2. Nf3 {[%emt 0:00:34]} Nc6 {[%emt 0:00:08]} 3. Bb5 {[%emt 0:00:12]} a6 {[%emt 0:00:06]} 4. Ba4 {[%emt 0:00:06]} Nf6 {[%emt 0:00:06]} 5. O-O {[%emt 0:00:18]} Be7 {[%emt 0:00:13]} 6. Re1 {[%emt 0:00:48]} b5 {[%emt 0:00:06]} 7. Bb3 {[%emt 0:00:04]} d6 {[%emt 0:00:07]} 8. c3 {[%emt 0:00:12]} O-O {[%emt 0:00:06]} 9. d3 {[%emt 0:00:16]} Na5 {[%emt 0:01:28]} 10. Bc2 {[%emt 0:00:06]} c5 {[%emt 0:00:07]} 11. Nbd2 {[%emt 0:00:06]} Nc6 {[%emt 0:01:18]} 12. Nf1 {[%emt 0:00:07]} Re8 {[%emt 0:00:06]} 13. Ng3 {[%emt 0:00:52]} h6 {[%emt 0:01:12]} 14. h3 {[%emt 0:00:26]} Bf8 {[%emt 0:00:07]} 15. Be3 {[%emt 0:01:48]} d5 {[%emt 0:06:50]} 16. Qe2 {[%emt 0:08:52]} Qc7 {[%emt 0:02:03]} 17. Nh2 {[%emt 0:07:24]} Be6 {[%emt 0:03:55]} 18. Nh5 {[%emt 0:03:29]} Nxh5 {[%emt 0:07:19]} 19. Qxh5 {[%emt 0:00:07]} d4 {[%emt 0:09:35]} 20. Bc1 {[%emt 0:10:27]} Rad8 {[%emt 0:01:18]} 21. f4 {[%emt 0:11:03]} exf4 {[%emt 0:04:08]} 22. Rf1 {[%emt 0:01:25]} Bd6 {[%emt 0:02:19]} 23. Qh4 {[%emt 0:04:54]} c4 {[%emt 0:00:47]} 24. Bxf4 {[%emt 0:08:13]} Bxf4 {[%emt 0:00:16]} 25. Qxf4 {[%emt 0:00:08]} Qxf4 {[%emt 0:00:16]} 26. Rxf4 {[%emt 0:00:06]} cxd3 {[%emt 0:01:16]} 27. Bb3 {[%emt 0:00:38]} dxc3 {[%emt 0:02:38]} 28. bxc3 {[%emt 0:00:08]} Bxb3 {[%emt 0:00:40]} 29. axb3 {[%emt 0:00:16]} d2 {[%emt 0:01:45]} 30. Rd1 {[%emt 0:00:16]} Na5 {[%emt 0:01:27]} 31. b4 {[%emt 0:00:31]} Nc4 {[%emt 0:00:08]} 32. Nf1 {[%emt 0:00:07]} f5 {[%emt 0:10:04]} 33. Kf2 {[%emt 0:05:33]} fxe4 {[%emt 0:00:51]} 34. Ke2 {[%emt 0:00:14]} e3 {[%emt 0:03:03]} 35. Rxc4 {[%emt 0:00:12]} bxc4 {[%emt 0:00:02]} 36. Nxe3 {[%emt 0:00:11]} Re6 {[%emt 0:00:53]} 37. Kf2 {[%emt 0:00:35]} Rf8+ {[%emt 0:00:13]} 0-1

[Event "FIDE CB Open 2022"]
[Site "Ceske Budejovice"]
[Date "2022.07.04"]
[Round "4.38"]
[White "Pavlicek, Petr"]
[Black "Vrchotka, Josef"]
[Result "0-1"]
[ECO "B14"]
[WhiteElo "1806"]
[BlackElo "1959"]
[Annotator "RC"]
[PlyCount "64"]
[EventDate "2022.07.01"]
[EventType "swiss"]
[EventCountry "CZE"]
[SourceTitle "playchess.com"]
[Source "ChessBase"]
[SourceQuality "1"]
[TimeControl "40/5400+30:1800+30"]

1. e4 {[%emt 0:00:16]} c6 {[%emt 0:00:55]} 2. d4 {[%emt 0:00:10]} d5 {[%emt 0:00:06]} 3. exd5 {[%emt 0:00:10]} cxd5 {[%emt 0:00:09]} 4. c4 {[%emt 0:00:09]} Nf6 {[%emt 0:00:09]} 5. Nc3 {[%emt 0:00:18]} e6 {[%emt 0:00:46]} 6. Nf3 {[%emt 0:00:19]} Nc6 {[%emt 0:00:25]} 7. c5 {[%emt 0:01:47]} Be7 {[%emt 0:02:32]} 8. Bb5 {[%emt 0:00:24]} Bd7 {[%emt 0:01:46]} 9. Bxc6 {[%emt 0:02:48]} Bxc6 {[%emt 0:01:30]} 10. Ne5 {[%emt 0:03:03]} O-O {[%emt 0:01:11]} 11. b4 {[%emt 0:02:56]} Ne4 {[%emt 0:12:21]} 12. Nxc6 {[%emt 0:06:48]} bxc6 {[%emt 0:03:15]} 13. Nxe4 {[%emt 0:00:30]} dxe4 {[%emt 0:00:30]} 14. Bb2 {[%emt 0:00:46]} a5 {[%emt 0:02:50]} 15. a3 {[%emt 0:01:05]} Qd5 {[%emt 0:01:02]} 16. O-O {[%emt 0:02:10]} axb4 {[%emt 0:02:38]} 17. axb4 {[%emt 0:02:16]} Bf6 {[%emt 0:07:17]} 18. Qd2 {[%emt 0:01:35]} Rxa1 {[%emt 0:00:41]} 19. Bxa1 {[%emt 0:04:37]} e5 {[%emt 0:01:10]} 20. f3 {[%emt 0:03:02]} exf3 {[%emt 0:04:18]} 21. Rxf3 {[%emt 0:00:27]} Ra8 {[%emt 0:00:21]} 22. Bb2 {[%emt 0:02:40]} exd4 {[%emt 0:02:35]} 23. Qe2 {[%emt 0:02:05]} Rd8 {[%emt 0:01:38]} 24. Rd3 {[%emt 0:00:55]} Qc4 {[%emt 0:04:40]} 25. Ba3 {[%emt 0:02:16]} Kf8 {[%emt 0:01:37]} 26. Qd1 {[%emt 0:04:33]} Re8 {[%emt 0:07:25]} 27. g3 {[%emt 0:03:19]} h5 {[%emt 0:01:02]} 28. Kg2 {[%emt 0:00:36]} Qd5+ {[%emt 0:03:30]} 29. Kg1 {[%emt 0:03:57]} Re4 {[%emt 0:01:41]} 30. Bc1 {[%emt 0:01:14]} Qc4 {[%emt 0:02:48]} 31. Qd2 {[%emt 0:02:54]} Bg5 {[%emt 0:01:41]} 32. Qxg5 {[%emt 0:05:51]} Qxd3 {[%emt 0:03:59]} 0-1

[Event "FIDE CB Open 2022"]
[Site "Ceske Budejovice"]
[Date "2022.07.04"]
[Round "4.39"]
[White "Wojdyla, Alex"]
[Black "Lang, Simon"]
[Result "1/2-1/2"]
[ECO "E17"]
[WhiteElo "1782"]
[BlackElo "1942"]
[Annotator "NA RC"]
[PlyCount "59"]
[EventDate "2022.07.01"]
[EventType "swiss"]
[EventCountry "CZE"]
[SourceTitle "playchess.com"]
[Source "ChessBase"]
[SourceQuality "1"]
[TimeControl "40/5400+30:1800+30"]

1. Nf3 {[%emt 0:00:07]} e6 {[%emt 0:00:48]} 2. b3 {[%emt 0:00:11]} Nf6 {[%emt 0:01:37]} 3. Bb2 {[%emt 0:00:13]} d5 {[%emt 0:01:35]} 4. d4 {[%emt 0:00:50]} b6 {[%emt 0:02:54]} 5. g3 {[%emt 0:02:10]} Bb7 {[%emt 0:00:43]} 6. Bg2 {[%emt 0:00:22]} Be7 {[%emt 0:01:16]} 7. O-O {[%emt 0:00:20]} O-O {[%emt 0:00:48]} 8. Nbd2 {[%emt 0:01:00]} Nbd7 {[%emt 0:01:21]} 9. Rc1 {[%emt 0:01:34]} c5 {[%emt 0:02:27]} 10. c4 {[%emt 0:02:13]} Rc8 {[%emt 0:03:25]} 11. Ne5 {[%emt 0:07:49]} cxd4 {[%emt 0:22:13]} 12. Bxd4 {[%emt 0:05:16]} Bc5 {[%emt 0:03:07]} 13. Nxd7 {[%emt 0:05:23]} Nxd7 {[%emt 0:06:39]} 14. Bxc5 {[%emt 0:02:56]} Nxc5 {[%emt 0:00:23]} 15. cxd5 {[%emt 0:00:54]} Bxd5 {[%emt 0:01:01]} 16. b4 {[%emt 0:04:37]} Bxg2 {[%emt 0:04:10]} 17. Kxg2 {[%emt 0:00:50]} Nb7 {[%emt 0:01:32]} 18. Rxc8 {[%emt 0:04:16]} Qxc8 {[%emt 0:00:11]} 19. Qb3 {[%emt 0:05:15]} Rd8 {[%emt 0:04:17]} 20. Nf3 {[%emt 0:03:52]} h6 {[%emt 0:01:43]} 21. Rd1 {[%emt 0:01:33]} Rd6 {[%emt 0:01:09]} 22. Rd3 {[%emt 0:01:11]} Rc6 {[%emt 0:03:30]} 23. Ne5 {[%emt 0:05:46]} Rc7 {[%emt 0:07:01]} 24. h4 {[%emt 0:04:48]} Nd8 {[%emt 0:01:20]} 25. Qa4 {[%emt 0:01:46]} Qb7+ {[%emt 0:01:12]} 26. Kh2 {[%emt 0:08:33]} Nc6 {[%emt 0:00:27]} 27. Nxc6 {[%emt 0:03:26]} Rxc6 {[%emt 0:00:23]} 28. Rd8+ {[%emt 0:01:19]} Kh7 {[%emt 0:00:09]} 29. Qd1 {[%emt 0:01:42]} Rc4 {[%emt 0:02:46]} 30. Rd4 {[%emt 0:02:07]} 1/2-1/2

[Event "FIDE CB Open 2022"]
[Site "Ceske Budejovice"]
[Date "2022.07.04"]
[Round "4.40"]
[White "Tsifanskaya, Ludmila A"]
[Black "Rosol, Philip"]
[Result "1-0"]
[ECO "D02"]
[WhiteElo "1941"]
[BlackElo "1741"]
[Annotator "NA RC"]
[PlyCount "48"]
[EventDate "2022.07.01"]
[EventType "swiss"]
[EventCountry "CZE"]
[SourceTitle "playchess.com"]
[Source "ChessBase"]
[SourceQuality "1"]
[TimeControl "40/5400+30:1800+30"]

1. Nf3 {[%emt 0:00:10]} Nf6 {[%emt 0:00:09]} 2. g3 {[%emt 0:00:07]} d5 {[%emt 0:00:06]} 3. Bg2 {[%emt 0:00:07]} c6 {[%emt 0:00:10]} 4. O-O {[%emt 0:00:16]} Bg4 {[%emt 0:00:16]} 5. Ne5 {[%emt 0:02:55]} Bf5 {[%emt 0:03:56]} 6. d4 {[%emt 0:02:21]} Nbd7 {[%emt 0:01:57]} 7. c4 {[%emt 0:01:52]} e6 {[%emt 0:01:52]} 8. cxd5 {[%emt 0:03:38]} exd5 {[%emt 0:05:29]} 9. Nc3 {[%emt 0:01:20]} Bd6 {[%emt 0:04:15]} 10. Nd3 {[%emt 0:20:11]} O-O {[%emt 0:03:05]} 11. Bf4 {[%emt 0:00:59]} Bxf4 {[%emt 0:05:45]} 12. Nxf4 {[%emt 0:00:07]} Re8 {[%emt 0:01:27]} 13. e3 {[%emt 0:01:52]} Ne4 {[%emt 0:12:55]} 14. Nxe4 {[%emt 0:07:03]} Bxe4 {[%emt 0:03:46]} 15. f3 {[%emt 0:06:24]} Bf5 {[%emt 0:04:45]} 16. Qd2 {[%emt 0:01:12]} Nf8 {[%emt 0:05:18]} 17. Rae1 {[%emt 0:04:10]} Ne6 {[%emt 0:13:26]} 18. Nxe6 {[%emt 0:05:36]} Rxe6 {[%emt 0:04:38]} 19. g4 {[%emt 0:03:15]} Bg6 {[%emt 0:00:21]} 20. f4 {[%emt 0:05:20]} Be4 {[%emt 0:01:30]} 21. f5 {[%emt 0:00:56]} Re8 {[%emt 0:02:50]} 22. Rf4 {[%emt 0:06:10]} Bxg2 {[%emt 0:05:30]} 23. Kxg2 {[%emt 0:04:55]} h5 {[%emt 0:02:22]} 24. gxh5 {[%emt 0:04:45]} g6 {[%emt 0:07:52]} 1-0

[Event "FIDE CB Open 2022"]
[Site "Ceske Budejovice"]
[Date "2022.07.04"]
[Round "4.41"]
[White "Travnicek, Jaroslav"]
[Black "Hlavac, Rudolf"]
[Result "0-1"]
[ECO "B22"]
[WhiteElo "1730"]
[BlackElo "1931"]
[Annotator "NA"]
[PlyCount "72"]
[EventDate "2022.07.01"]
[EventType "swiss"]
[EventCountry "CZE"]
[SourceTitle "playchess.com"]
[Source "ChessBase"]
[SourceQuality "1"]
[TimeControl "40/5400+30:1800+30"]

1. e4 {[%emt 0:00:16]} c5 {[%emt 0:00:09]} 2. c3 {[%emt 0:00:04]} d5 {[%emt 0:00:15]} 3. exd5 {[%emt 0:00:08]} Qxd5 {[%emt 0:00:08]} 4. d4 {[%emt 0:00:09]} Nf6 {[%emt 0:00:10]} 5. Nf3 {[%emt 0:00:13]} e6 {[%emt 0:00:10]} 6. Be2 {[%emt 0:00:21]} Nc6 {[%emt 0:00:14]} 7. O-O {[%emt 0:00:45]} cxd4 {[%emt 0:00:12]} 8. cxd4 {[%emt 0:00:13]} Be7 {[%emt 0:00:14]} 9. Nc3 {[%emt 0:00:23]} Qd6 {[%emt 0:00:13]} 10. Nb5 {[%emt 0:01:41]} Qd8 {[%emt 0:04:12]} 11. Bf4 {[%emt 0:08:33]} Nd5 {[%emt 0:00:22]} 12. Bg3 {[%emt 0:02:16]} a6 {[%emt 0:00:15]} 13. Nc3 {[%emt 0:00:21]} O-O {[%emt 0:00:34]} 14. Qd2 {[%emt 0:02:28]} b5 {[%emt 0:04:42]} 15. a3 {[%emt 0:01:35]} Bb7 {[%emt 0:00:27]} 16. b4 {[%emt 0:02:47]} Nxc3 {[%emt 0:03:17]} 17. Qxc3 {[%emt 0:00:14]} Rc8 {[%emt 0:00:18]} 18. Qd3 {[%emt 0:02:18]} Bf6 {[%emt 0:01:31]} 19. Rfd1 {[%emt 0:01:28]} Ne7 {[%emt 0:01:57]} 20. Bf4 {[%emt 0:07:18]} Ng6 {[%emt 0:06:42]} 21. Be3 {[%emt 0:02:15]} Qd6 {[%emt 0:04:34]} 22. Rac1 {[%emt 0:01:39]} Nf4 {[%emt 0:04:01]} 23. Bxf4 {[%emt 0:11:06]} Qxf4 {[%emt 0:00:46]} 24. Qe3 {[%emt 0:02:42]} Qe4 {[%emt 0:09:10]} 25. Qxe4 {[%emt 0:04:53]} Bxe4 {[%emt 0:00:17]} 26. Kf1 {[%emt 0:06:34]} Rfd8 {[%emt 0:03:51]} 27. Ke1 {[%emt 0:16:28]} g6 {[%emt 0:07:07]} 28. Kf1 {[%emt 0:09:51]} h5 {[%emt 0:03:48]} 29. Rc5 {[%emt 0:05:18]} Be7 {[%emt 0:00:43]} 30. Rcc1 {[%emt 0:00:48]} Kg7 {[%emt 0:03:05]} 31. Ke1 {[%emt 0:02:21]} Bc2 {[%emt 0:09:02]} 32. Rd2 {[%emt 0:01:02]} Bb3 {[%emt 0:00:29]} 33. Rb1 {[%emt 0:01:04]} Bd5 {[%emt 0:00:41]} 34. Rdd1 {[%emt 0:01:04]} Rc3 {[%emt 0:02:03]} 35. Ra1 {[%emt 0:02:37]} Rxa3 {[%emt 0:01:37]} 36. Rab1 {[%emt 0:01:47]} Ra4 {[%emt 0:00:46]} 0-1

[Event "FIDE CB Open 2022"]
[Site "Ceske Budejovice"]
[Date "2022.07.04"]
[Round "4.42"]
[White "Milovs, Daniels"]
[Black "Nagyova, Daniela"]
[Result "1/2-1/2"]
[ECO "C55"]
[WhiteElo "1926"]
[BlackElo "1712"]
[Annotator "NA"]
[PlyCount "69"]
[EventDate "2022.07.01"]
[EventType "swiss"]
[EventCountry "CZE"]
[SourceTitle "playchess.com"]
[Source "ChessBase"]
[SourceQuality "1"]
[TimeControl "40/5400+30:1800+30"]

1. e4 {[%emt 0:02:52]} e5 {[%emt 0:00:09]} 2. Nf3 {[%emt 0:00:01]} Nc6 {[%emt 0:00:12]} 3. Bc4 {[%emt 0:00:06]} Nf6 {[%emt 0:00:16]} 4. d3 {[%emt 0:00:02]} Be7 {[%emt 0:00:15]} 5. c3 {[%emt 0:00:10]} O-O {[%emt 0:00:16]} 6. O-O {[%emt 0:00:15]} d5 {[%emt 0:00:35]} 7. exd5 {[%emt 0:00:20]} Nxd5 {[%emt 0:00:08]} 8. Re1 {[%emt 0:01:40]} Bg4 {[%emt 0:00:47]} 9. h3 {[%emt 0:01:43]} Bh5 {[%emt 0:00:03]} 10. Nbd2 {[%emt 0:05:31]} Nb6 {[%emt 0:01:15]} 11. Bb5 {[%emt 0:04:03]} f6 {[%emt 0:02:45]} 12. Ne4 {[%emt 0:07:42]} Kh8 {[%emt 0:04:41]} 13. Ng3 {[%emt 0:01:32]} Be8 {[%emt 0:05:43]} 14. d4 {[%emt 0:08:02]} exd4 {[%emt 0:03:25]} 15. Bxc6 {[%emt 0:06:11]} Bxc6 {[%emt 0:01:20]} 16. Nxd4 {[%emt 0:00:41]} Bd5 {[%emt 0:06:52]} 17. Ngf5 {[%emt 0:06:46]} Bc5 {[%emt 0:05:40]} 18. Qg4 {[%emt 0:02:23]} Rf7 {[%emt 0:02:45]} 19. Bf4 {[%emt 0:04:35]} Bxd4 {[%emt 0:07:34]} 20. Nxd4 {[%emt 0:01:03]} Qd7 {[%emt 0:03:03]} 21. Qxd7 {[%emt 0:02:37]} Rxd7 {[%emt 0:00:15]} 22. b3 {[%emt 0:05:32]} Bf7 {[%emt 0:05:28]} 23. Ne6 {[%emt 0:03:20]} Bxe6 {[%emt 0:04:26]} 24. Rxe6 {[%emt 0:00:01]} Kg8 {[%emt 0:00:58]} 25. c4 {[%emt 0:01:37]} Rad8 {[%emt 0:03:15]} 26. Kf1 {[%emt 0:01:44]} Nc8 {[%emt 0:03:25]} 27. Re2 {[%emt 0:04:43]} Ne7 {[%emt 0:04:40]} 28. Ke1 {[%emt 0:01:07]} Nc6 {[%emt 0:04:25]} 29. Rd2 {[%emt 0:02:07]} Rxd2 {[%emt 0:04:36]} 30. Bxd2 {[%emt 0:00:01]} Nd4 {[%emt 0:04:39]} 31. Rc1 {[%emt 0:03:15]} c5 {[%emt 0:03:32]} 32. Be3 {[%emt 0:03:39]} Kf7 {[%emt 0:02:20]} 33. f3 {[%emt 0:02:12]} b6 {[%emt 0:05:27]} 34. Rc3 {[%emt 0:10:08]} Ke6 {[%emt 0:05:00]} 35. Bd2 {[%emt 0:02:53]} 1/2-1/2

[Event "FIDE CB Open 2022"]
[Site "Ceske Budejovice"]
[Date "2022.07.04"]
[Round "4.43"]
[White "Stastna, Martina"]
[Black "Pavlis, Matej"]
[Result "*"]
[ECO "B40"]
[WhiteElo "1912"]
[BlackElo "1625"]
[Annotator "NA"]
[PlyCount "26"]
[EventDate "2022.07.01"]
[EventType "swiss"]
[EventCountry "CZE"]
[SourceTitle "playchess.com"]
[Source "ChessBase"]
[SourceQuality "1"]
[TimeControl "40/5400+30:1800+30"]

1. e4 {[%emt 0:00:03]} c5 {[%emt 0:00:12]} 2. Nf3 {[%emt 0:00:16]} e6 {[%emt 0:00:13]} 3. d4 {[%emt 0:00:50]} cxd4 {[%emt 0:00:11]} 4. Nxd4 {[%emt 0:00:07]} Nf6 {[%emt 0:00:23]} 5. Nd2 {[%emt 0:01:51]} d6 {[%emt 0:01:25]} 6. g3 {[%emt 0:01:54]} Nc6 {[%emt 0:02:24]} 7. N4f3 {[%emt 0:01:38]} Be7 {[%emt 0:02:48]} 8. Bg2 {[%emt 0:00:47]} Qc7 {[%emt 0:03:35]} 9. O-O {[%emt 0:05:48]} O-O {[%emt 0:04:25]} 10. c3 {[%emt 0:04:42]} Rd8 {[%emt 0:03:52]} 11. Qe2 {[%emt 0:04:26]} b6 {[%emt 0:02:52]} 12. Nb3 {[%emt 0:03:17]} a6 {[%emt 0:18:15]} 13. Nfd4 {[%emt 0:16:37]} h6 {[%emt 0:09:50]} *

[Event "FIDE CB Open 2022"]
[Site "Ceske Budejovice"]
[Date "2022.07.04"]
[Round "4.44"]
[White "Vojtek, Pavel"]
[Black "Hradek, Matyas"]
[Result "0-1"]
[ECO "A36"]
[WhiteElo "1711"]
[BlackElo "1888"]
[Annotator "NA RC"]
[PlyCount "46"]
[EventDate "2022.07.01"]
[EventType "swiss"]
[EventCountry "CZE"]
[SourceTitle "playchess.com"]
[Source "ChessBase"]
[SourceQuality "1"]
[TimeControl "40/5400+30:1800+30"]

1. c4 {[%emt 0:00:03]} c5 {[%emt 0:00:04]} 2. g3 {[%emt 0:00:03]} g6 {[%emt 0:00:02]} 3. Bg2 {[%emt 0:00:04]} Bg7 {[%emt 0:00:03]} 4. Nc3 {[%emt 0:00:06]} Nc6 {[%emt 0:00:07]} 5. e3 {[%emt 0:00:13]} d6 {[%emt 0:00:33]} 6. Nge2 {[%emt 0:00:41]} e5 {[%emt 0:00:13]} 7. O-O {[%emt 0:01:35]} Nge7 {[%emt 0:00:24]} 8. a3 {[%emt 0:06:21]} Be6 {[%emt 0:02:08]} 9. Nd5 {[%emt 0:02:07]} f5 {[%emt 0:08:22]} 10. Nec3 {[%emt 0:07:39]} O-O {[%emt 0:08:00]} 11. b4 {[%emt 0:07:26]} e4 {[%emt 0:01:31]} 12. Rb1 {[%emt 0:05:18]} cxb4 {[%emt 0:13:15]} 13. axb4 {[%emt 0:00:46]} Ne5 {[%emt 0:00:17]} 14. Qb3 {[%emt 0:13:59]} Rc8 {[%emt 0:01:52]} 15. Qa4 {[%emt 0:17:48]} Nxc4 {[%emt 0:03:09]} 16. Nf4 {[%emt 0:03:51]} Nb6 {[%emt 0:01:02]} 17. Qxa7 {[%emt 0:02:22]} Bc4 {[%emt 0:01:31]} 18. b5 {[%emt 0:09:22]} Ra8 {[%emt 0:07:54]} 19. Qxb7 {[%emt 0:02:44]} Bxc3 {[%emt 0:00:09]} 20. dxc3 {[%emt 0:01:10]} g5 {[%emt 0:00:07]} 21. Rb4 {[%emt 0:11:37]} gxf4 {[%emt 0:01:13]} 22. Rxc4 {[%emt 0:00:45]} Nxc4 {[%emt 0:00:17]} 23. g4 {[%emt 0:01:38]} d5 {[%emt 0:00:29]} 0-1

[Event "FIDE CB Open 2022"]
[Site "Ceske Budejovice"]
[Date "2022.07.04"]
[Round "4.45"]
[White "Simunek, Jakub Simon"]
[Black "Hammel, Juergen"]
[Result "1-0"]
[ECO "C45"]
[WhiteElo "1887"]
[BlackElo "1650"]
[Annotator "NA RC"]
[PlyCount "91"]
[EventDate "2022.07.01"]
[EventType "swiss"]
[EventCountry "CZE"]
[SourceTitle "playchess.com"]
[Source "ChessBase"]
[SourceQuality "1"]
[TimeControl "40/5400+30:1800+30"]

1. e4 {[%emt 0:00:12]} e5 {[%emt 0:00:08]} 2. Nf3 {[%emt 0:00:07]} Nc6 {[%emt 0:00:24]} 3. d4 {[%emt 0:00:15]} exd4 {[%emt 0:00:48]} 4. Nxd4 {[%emt 0:00:08]} Nf6 {[%emt 0:00:24]} 5. Nxc6 {[%emt 0:00:48]} bxc6 {[%emt 0:00:10]} 6. e5 {[%emt 0:00:08]} Nd5 {[%emt 0:00:13]} 7. c4 {[%emt 0:02:18]} Nb6 {[%emt 0:01:25]} 8. Bd3 {[%emt 0:01:22]} d6 {[%emt 0:01:50]} 9. O-O {[%emt 0:04:17]} Be7 {[%emt 0:02:55]} 10. Qh5 {[%emt 0:09:02]} Be6 {[%emt 0:04:53]} 11. Be4 {[%emt 0:21:42]} Qd7 {[%emt 0:00:52]} 12. Qf3 {[%emt 0:10:00]} d5 {[%emt 0:06:01]} 13. cxd5 {[%emt 0:00:10]} cxd5 {[%emt 0:00:26]} 14. Bd3 {[%emt 0:01:38]} c6 {[%emt 0:10:01]} 15. Nc3 {[%emt 0:02:54]} h6 {[%emt 0:05:04]} 16. a4 {[%emt 0:07:03]} Bg4 {[%emt 0:03:24]} 17. Qg3 {[%emt 0:00:58]} a5 {[%emt 0:08:55]} 18. h3 {[%emt 0:07:37]} Bf5 {[%emt 0:00:52]} 19. b3 {[%emt 0:09:57]} Bc5 {[%emt 0:06:45]} 20. Qxg7 {[%emt 0:08:43]} O-O-O {[%emt 0:00:10]} 21. Bxf5 {[%emt 0:00:24]} Qxf5 {[%emt 0:00:19]} 22. Qg4 {[%emt 0:00:04]} Qxg4 {[%emt 0:00:34]} 23. hxg4 {[%emt 0:00:08]} Bd4 {[%emt 0:01:01]} 24. Bd2 {[%emt 0:01:26]} Rdg8 {[%emt 0:03:18]} 25. Rac1 {[%emt 0:03:33]} Kb7 {[%emt 0:00:35]} 26. Ne2 {[%emt 0:03:33]} Rxg4 {[%emt 0:02:03]} 27. Nxd4 {[%emt 0:00:25]} Rxd4 {[%emt 0:00:21]} 28. Bc3 {[%emt 0:00:10]} Re4 {[%emt 0:01:43]} 29. e6 {[%emt 0:00:17]} Rh7 {[%emt 0:00:32]} 30. exf7 {[%emt 0:00:38]} Rxf7 {[%emt 0:00:18]} 31. Bxa5 {[%emt 0:00:28]} Rfe7 {[%emt 0:01:06]} 32. Bd2 {[%emt 0:01:50]} h5 {[%emt 0:03:45]} 33. a5 {[%emt 0:02:53]} Nd7 {[%emt 0:01:17]} 34. a6+ {[%emt 0:00:33]} Kb6 {[%emt 0:02:52]} 35. a7 {[%emt 0:01:31]} Re8 {[%emt 0:00:10]} 36. Rfd1 {[%emt 0:00:36]} c5 {[%emt 0:03:08]} 37. b4 {[%emt 0:00:26]} d4 {[%emt 0:01:49]} 38. bxc5+ {[%emt 0:00:35]} Nxc5 {[%emt 0:00:29]} 39. f3 {[%emt 0:00:34]} R4e7 {[%emt 0:01:10]} 40. Ba5+ {[%emt 0:00:27]} Kc6 {[%emt 0:04:16]} 41. Bb4 {[%emt 0:30:10]} Re5 {[%emt 0:33:26]} 42. Rxd4 {[%emt 0:00:40]} Kb6 {[%emt 0:03:28]} 43. Bxc5+ {[%emt 0:00:40]} Rxc5 {[%emt 0:00:25]} 44. Rxc5 {[%emt 0:00:30]} Kxc5 {[%emt 0:00:15]} 45. Ra4 {[%emt 0:00:05]} Ra8 {[%emt 0:00:13]} 46. Kh2 {[%emt 0:00:45]} 1-0

[Event "FIDE CB Open 2022"]
[Site "Ceske Budejovice"]
[Date "2022.07.04"]
[Round "4.46"]
[White "Hladky, Mikulas"]
[Black "Shirinyan, Daniel"]
[Result "1/2-1/2"]
[ECO "B52"]
[WhiteElo "1549"]
[BlackElo "1876"]
[Annotator "NA RC"]
[PlyCount "44"]
[EventDate "2022.07.01"]
[EventType "swiss"]
[EventCountry "CZE"]
[SourceTitle "playchess.com"]
[Source "ChessBase"]
[SourceQuality "1"]
[TimeControl "40/5400+30:1800+30"]

1. e4 {[%emt 0:00:04]} c5 {[%emt 0:00:02]} 2. Nf3 {[%emt 0:00:07]} d6 {[%emt 0:00:05]} 3. Bb5+ {[%emt 0:00:06]} Bd7 {[%emt 0:00:39]} 4. Bxd7+ {[%emt 0:00:06]} Qxd7 {[%emt 0:00:54]} 5. O-O {[%emt 0:00:11]} Nc6 {[%emt 0:00:11]} 6. Re1 {[%emt 0:00:11]} g6 {[%emt 0:01:16]} 7. c3 {[%emt 0:05:55]} Bg7 {[%emt 0:00:07]} 8. d4 {[%emt 0:01:15]} b6 {[%emt 0:02:52]} 9. Bf4 {[%emt 0:02:13]} Rd8 {[%emt 0:09:52]} 10. d5 {[%emt 0:00:58]} Ne5 {[%emt 0:01:26]} 11. Bxe5 {[%emt 0:00:29]} Bxe5 {[%emt 0:00:35]} 12. Nxe5 {[%emt 0:00:17]} dxe5 {[%emt 0:00:04]} 13. c4 {[%emt 0:00:27]} Nf6 {[%emt 0:02:35]} 14. Nc3 {[%emt 0:00:32]} O-O {[%emt 0:00:11]} 15. Qf3 {[%emt 0:01:36]} Nh5 {[%emt 0:01:36]} 16. g3 {[%emt 0:02:17]} Qc8 {[%emt 0:00:18]} 17. Nb5 {[%emt 0:01:12]} Qb8 {[%emt 0:00:28]} 18. Qe3 {[%emt 0:04:05]} Kg7 {[%emt 0:03:40]} 19. Rad1 {[%emt 0:01:23]} a6 {[%emt 0:00:27]} 20. Nc3 {[%emt 0:01:05]} Nf6 {[%emt 0:00:11]} 21. Kg2 {[%emt 0:00:30]} h5 {[%emt 0:01:11]} 22. Qg5 {[%emt 0:00:57]} Rfe8 {[%emt 0:08:13]} 1/2-1/2